fUSD/lending_fUSD_20240508
["ID","MTS","AMOUNT","RATE_DAILY","PERIOD"]
[326637332,1715177445864,-500.0,0.00027397,2]
[326637333,1715177445874,-500.0,0.00027397,2]
[326637334,1715177445884,-323.32,0.00027397,2]
[326637335,1715177445894,-500.0,0.00027397,2]
[326637336,1715177445907,-457.47,0.00027397,2]
[326637337,1715177445917,-500.0,0.00027397,2]
[326637338,1715177445927,-500.0,0.00027397,2]
[326637339,1715177445938,-500.0,0.00027397,2]
[326637340,1715177445947,-512.64,0.00027397,2]
[326637341,1715177445957,-500.0,0.00027397,2]
[326637342,1715177445966,-2471.69,0.00027397,2]
[326637343,1715177445976,-500.0,0.00027397,2]
[326637344,1715177445985,-500.0,0.00027397,2]
[326637345,1715177445995,-500.0,0.00027397,2]
[326637346,1715177446004,-500.0,0.00027397,2]
[326637347,1715177446014,-500.0,0.00027397,2]
[326637348,1715177446023,-500.0,0.00027397,2]
[326637349,1715177446033,-500.0,0.00027397,2]
[326637350,1715177446042,-278.9,0.00027397,2]
[326637351,1715177446051,-500.0,0.00027397,2]
[326637352,1715177446061,-475.54,0.00027397,2]
[326637353,1715177446070,-500.0,0.00027397,2]
[326637354,1715177446080,-500.0,0.00027397,2]
[326637355,1715177446089,-464.34,0.00027397,2]
[326637356,1715177446099,-500.0,0.00027397,2]
[326637357,1715177446108,-500.0,0.00027397,2]
[326637358,1715177446118,-500.0,0.00027397,2]
[326637359,1715177446127,-500.0,0.00027397,2]
[326637360,1715177446137,-500.0,0.00027397,2]
[326637361,1715177446147,-206.01,0.00027397,2]
[326637362,1715177446156,-3087.08,0.00027397,2]
[326637363,1715177446165,-500.0,0.00027397,2]
[326637364,1715177446175,-64091.60208398,0.00027397,2]
[326637365,1715177446184,-500.0,0.00027397,2]
[326637366,1715177446193,-2753.21,0.00027397,2]
[326637367,1715177446203,-2202.88,0.00027397,2]
[326637368,1715177446212,-238.53,0.00027397,2]
[326637369,1715177446221,-3077.38,0.00027397,2]
[326637370,1715177446231,-500.0,0.00027397,2]
[326637371,1715177446240,-890.08,0.00027397,2]
[326637372,1715177446249,-629.13,0.00027397,2]
[326637373,1715177446259,-500.0,0.00027397,2]
[326637374,1715177446268,-500.0,0.00027397,2]
[326637375,1715177446277,-577.25,0.00027397,2]
[326637376,1715177446286,-500.0,0.00027397,2]
[326637377,1715177446295,-500.0,0.00027397,2]
[326637378,1715177446305,-500.0,0.00027397,2]
[326637379,1715177446314,-500.0,0.00027397,2]
[326637380,1715177446323,-500.0,0.00027397,2]
[326637381,1715177446334,-500.0,0.00027397,2]
[326637382,1715177446344,-500.0,0.00027397,2]
[326637383,1715177446353,-500.0,0.00027397,2]
[326637384,1715177446362,-500.0,0.00027397,2]
[326637385,1715177446372,-1731.99,0.00027397,2]
[326637386,1715177446381,-500.0,0.00027397,2]
[326637387,1715177446390,-418.55,0.00027397,2]
[326637388,1715177446399,-185.54,0.00027397,2]
[326637389,1715177446409,-2695.58,0.00027397,2]
[326637390,1715177446422,-500.0,0.00027397,2]
[326637391,1715177446431,-500.0,0.00027397,2]
[326637392,1715177446441,-150.0,0.00027397,2]
[326637393,1715177446451,-213.81,0.000274,2]
[326637394,1715177446460,-688.83236884,0.0002741,2]
[326637395,1715177446470,-150.0,0.00027439,2]
[326637396,1715177446479,-150.0,0.00027497,2]
[326637397,1715177446488,-5518.0,0.000275,5]
[326637398,1715177446498,-224.28811222,0.00027548,2]
[326637399,1715177446507,-150.0,0.00027582,2]
[326637400,1715177446517,-159.87,0.00027589,2]
[326637401,1715177446526,-150.0,0.00027631,2]
[326637402,1715177446536,-201.0,0.0002768,2]
[326637403,1715177446546,-202.0,0.0002768,2]
[326637404,1715177446555,-9310.49079857,0.000277,2]
[326637405,1715177446565,-155.06118205,0.00027726,30]
[326637406,1715177446574,-150.0,0.00027782,2]
[326637407,1715177446584,-810.2660858,0.000278,7]
[326637408,1715177446593,-206.454,0.00027837,2]
[326637409,1715177446602,-663.597,0.00027837,2]
[326637410,1715177446611,-326.6,0.00027837,2]
[326637411,1715177446620,-438.0,0.00027837,2]
[326637412,1715177446634,-421.0,0.00027837,2]
[326637413,1715177446644,-1478.0,0.00027837,2]
[326637414,1715177446653,-2431.0,0.00027837,2]
[326637415,1715177446662,-444.0,0.00027837,2]
[326637416,1715177446674,-920.573,0.00027837,2]
[326637417,1715177446683,-369.071,0.00027837,2]
[326637418,1715177446692,-494.05881643,0.00027881,2]
[326637419,1715177446703,-155.06118205,0.0002789,30]
[326637420,1715177446714,-1970.00275979,0.000279,2]
[326637421,1715177446724,-1970.00275979,0.000279,2]
[326637422,1715177446734,-1970.00275979,0.000279,2]
[326637423,1715177446746,-1970.00275979,0.000279,2]
[326637424,1715177446762,-1970.00275979,0.000279,2]
[326637425,1715177446778,-1970.00275979,0.000279,2]
[326637426,1715177446797,-1970.00275979,0.000279,2]
[326637427,1715177446810,-1970.00275979,0.000279,2]
[326637428,1715177446822,-1970.00275979,0.000279,2]
[326637429,1715177446834,-1970.00275979,0.000279,2]
[326637430,1715177446845,-1970.00275979,0.000279,2]
[326637431,1715177446855,-1970.00275979,0.000279,2]
[326637432,1715177446866,-1970.00275979,0.000279,2]
[326637433,1715177446877,-1970.00275979,0.000279,2]
[326637434,1715177446887,-1173.38595181,0.000279,2]
[326637435,1715177446908,-796.61680798,0.000279,2]
[326637436,1715177446918,-1970.00275979,0.000279,2]
[326637437,1715177446928,-1970.00275979,0.000279,2]
[326637438,1715177446937,-1970.00275979,0.000279,2]
[326637439,1715177446947,-1970.00275979,0.000279,2]
[326637440,1715177446956,-1970.5,0.000279,2]
[326637441,1715177446966,-7536.08542749,0.000279,2]
[326637442,1715177446975,-506.02053729,0.000279,2]
[326637443,1715177446985,-224.28811222,0.000279,2]
[326637444,1715177446994,-605.3814386,0.000279,2]
[326637445,1715177447004,-605.3814386,0.000279,2]
[326637446,1715177447013,-605.3814386,0.000279,2]
[326637447,1715177447023,-605.3814386,0.000279,2]
[326637448,1715177447033,-605.3814386,0.000279,2]
[326637449,1715177447043,-605.3814386,0.000279,2]
[326637450,1715177447052,-605.3814386,0.000279,2]
[326637451,1715177447166,-605.3814386,0.000279,2]
[326637452,1715177447176,-605.3814386,0.000279,2]
[326637453,1715177447186,-605.3814386,0.000279,2]
[326637454,1715177447196,-605.3814386,0.000279,2]
[326637455,1715177447206,-605.3814386,0.000279,2]
[326637456,1715177447216,-605.3814386,0.000279,2]
[326637457,1715177447225,-605.3814386,0.000279,2]
[326637458,1715177447235,-605.3814386,0.000279,2]
[326637459,1715177447245,-605.3814386,0.000279,2]
[326637460,1715177447254,-605.3814386,0.000279,2]
[326637461,1715177447264,-605.3814386,0.000279,2]
[326637462,1715177447274,-605.3814386,0.000279,2]
[326637463,1715177447283,-605.88,0.000279,2]
[326637464,1715177447293,-154.85445849,0.000279,2]
[326637465,1715177447303,-154.85445849,0.000279,2]
[326637466,1715177447312,-154.85445849,0.000279,2]
[326637467,1715177447322,-154.85445849,0.000279,2]
[326637468,1715177447333,-154.85445849,0.000279,2]
[326637469,1715177447342,-154.85445849,0.000279,2]
[326637470,1715177447351,-154.85445849,0.000279,2]
[326637471,1715177447361,-154.85445849,0.000279,2]
[326637472,1715177447370,-154.85445849,0.000279,2]
[326637473,1715177447380,-154.85445849,0.000279,2]
[326637474,1715177447390,-154.85445849,0.000279,2]
[326637475,1715177447399,-154.85445849,0.000279,2]
[326637476,1715177447408,-154.85445849,0.000279,2]
[326637477,1715177447420,-154.85445849,0.000279,2]
[326637478,1715177447430,-154.85445849,0.000279,2]
[326637479,1715177447440,-154.85445849,0.000279,2]
[326637480,1715177447449,-154.85445849,0.000279,2]
[326637481,1715177447458,-155.35,0.000279,2]
[326637482,1715177447467,-9728.07775761,0.000279,2]
[326637483,1715177447477,-739.68811661,0.000279,2]
[326637484,1715177447487,-739.68811661,0.000279,2]
[326637485,1715177447496,-739.68811661,0.000279,2]
[326637486,1715177447506,-739.68811661,0.000279,2]
[326637487,1715177447515,-739.68811661,0.000279,2]
[326637488,1715177447525,-739.68811661,0.000279,2]
[326637489,1715177447535,-739.68811661,0.000279,2]
[326637490,1715177447544,-739.68811661,0.000279,2]
[326637491,1715177447554,-739.68811661,0.000279,2]
[326637492,1715177447563,-739.68811661,0.000279,2]
[326637493,1715177447572,-739.68811661,0.000279,2]
[326637494,1715177447583,-739.68811661,0.000279,2]
[326637495,1715177447592,-688.83236884,0.000279,2]
[326637496,1715177447601,-739.68811661,0.000279,2]
[326637497,1715177447610,-739.68811661,0.000279,2]
[326637498,1715177447619,-739.68811661,0.000279,2]
[326637499,1715177447631,-739.68811661,0.000279,2]
[326637500,1715177447640,-739.68811661,0.000279,2]
[326637501,1715177447649,-739.68811661,0.000279,2]
[326637502,1715177447660,-739.68811661,0.000279,2]
[326637503,1715177447670,-740.18,0.000279,2]
[326637504,1715177447680,-150.0,0.00027944,2]
[326637505,1715177447690,-522.0,0.00027944,5]
[326637506,1715177447699,-1124.5,0.00027945,5]
[326637507,1715177447708,-500.0,0.00027945,5]
[326637508,1715177447720,-500.0,0.00027945,5]
[326637509,1715177447730,-1782.18,0.00027945,5]
[326637510,1715177447741,-500.0,0.00027945,5]
[326637511,1715177447750,-395.65,0.00027945,5]
[326637512,1715177447760,-187.88993386,0.00027945,5]
[326637513,1715177447769,-500.0,0.00027945,5]
[326637514,1715177447778,-500.0,0.00027945,5]
[326637515,1715177447788,-1761.24,0.00027945,5]
[326637516,1715177447797,-590.75976943,0.00027945,5]
[326637517,1715177447807,-196.61027653,0.00027945,5]
[326637518,1715177447816,-500.0,0.00027945,5]
[326637519,1715177447825,-151.0,0.00027945,7]
[326637520,1715177447836,-500.0,0.00027945,5]
[326637521,1715177447846,-500.0,0.00027945,5]
[326637522,1715177447855,-242.04,0.00027945,5]
[326637523,1715177447864,-2510.11,0.00027945,5]
[326637524,1715177447874,-1761.24,0.00027945,5]
[326637525,1715177447884,-500.0,0.00027945,5]
[326637526,1715177447893,-1696.25,0.00027945,5]
[326637527,1715177447903,-500.0,0.00027945,5]
[326637528,1715177447913,-2279.9,0.00027945,5]
[326637529,1715177447923,-500.0,0.00027945,5]
[326637530,1715177447932,-500.0,0.00027945,5]
[326637531,1715177447941,-1483.0,0.00027945,5]
[326637532,1715177447951,-833.4,0.00027945,5]
[326637533,1715177447960,-500.0,0.00027945,5]
[326637534,1715177447970,-500.0,0.00027945,5]
[326637535,1715177447980,-151.0,0.00027945,7]
[326637536,1715177447990,-2878.93393194,0.00027945,5]
[326637537,1715177448000,-500.0,0.00027945,5]
[326637538,1715177448009,-593.4,0.00027945,5]
[326637539,1715177448019,-1474.42,0.00027945,5]
[326637540,1715177448028,-1762.52,0.00027945,5]
[326637541,1715177448038,-500.0,0.00027945,5]
[326637542,1715177448048,-864.3,0.00027945,5]
[326637543,1715177448057,-364.95,0.00027945,5]
[326637544,1715177448072,-1693.09,0.00027945,5]
[326637545,1715177448082,-500.0,0.00027945,5]
[326637546,1715177448092,-3488.99,0.00027945,5]
[326637547,1715177448102,-1531.27,0.00027945,5]
[326637548,1715177448112,-251.01,0.00027945,5]
[326637549,1715177448121,-1986.82,0.00027945,5]
[326637550,1715177448131,-1621.09,0.00027945,5]
[326637551,1715177448140,-184.52,0.00027945,5]
[326637552,1715177448150,-314.14,0.00027945,5]
[326637553,1715177448160,-269.14,0.00027945,5]
[326637554,1715177448170,-1512.54,0.00027945,5]
[326637555,1715177448179,-231.04,0.00027945,5]
[326637556,1715177448189,-403.75,0.00027945,5]
[326637557,1715177448198,-515.02,0.00027945,5]
[326637558,1715177448208,-500.0,0.00027945,5]
[326637559,1715177448217,-150.0,0.00027945,5]
[326637560,1715177448227,-500.0,0.00027945,5]
[326637561,1715177448236,-542.16,0.00027945,5]
[326637562,1715177448246,-1871.41,0.00027945,5]
[326637563,1715177448256,-500.0,0.00027945,5]
[326637564,1715177448266,-500.0,0.00027945,5]
[326637565,1715177448276,-500.0,0.00027945,5]
[326637566,1715177448289,-363.28,0.00027945,5]
[326637567,1715177448299,-500.0,0.00027945,5]
[326637568,1715177448309,-500.0,0.00027945,5]
[326637569,1715177448319,-547.42,0.00027945,5]
[326637570,1715177448328,-500.0,0.00027945,5]
[326637571,1715177448339,-500.0,0.00027945,5]
[326637572,1715177448348,-1912.94,0.00027945,5]
[326637573,1715177448359,-1873.96,0.00027945,5]
[326637574,1715177448369,-2241.465305,0.00027945,7]
[326637575,1715177448379,-233.12,0.00027945,5]
[326637576,1715177448388,-2241.465305,0.00027945,7]
[326637577,1715177448398,-635.9,0.00027945,5]
[326637578,1715177448407,-500.0,0.00027945,5]
[326637579,1715177448419,-500.0,0.00027945,5]
[326637580,1715177448429,-500.0,0.00027945,5]
[326637581,1715177448439,-500.0,0.00027945,5]
[326637582,1715177448448,-500.0,0.00027945,5]
[326637583,1715177448458,-500.0,0.00027945,5]
[326637584,1715177448468,-3413.65,0.00027945,5]
[326637585,1715177448477,-1510.23,0.00027945,5]
[326637586,1715177448487,-500.0,0.00027945,5]
[326637587,1715177448497,-500.0,0.00027945,5]
[326637588,1715177448506,-500.0,0.00027945,5]
[326637589,1715177448515,-500.0,0.00027945,5]
[326637590,1715177448524,-500.0,0.00027945,5]
[326637591,1715177448534,-935.82,0.00027945,5]
[326637592,1715177448543,-633.27,0.00027945,5]
[326637593,1715177448552,-1190.04,0.00027945,5]
[326637594,1715177448562,-500.0,0.00027945,5]
[326637595,1715177448571,-1588.46,0.00027945,5]
[326637596,1715177448582,-500.0,0.00027945,5]
[326637597,1715177448591,-306.97,0.00027945,5]
[326637598,1715177448600,-500.0,0.00027945,5]
[326637599,1715177448610,-500.0,0.00027945,5]
[326637600,1715177448620,-1822.38,0.00027945,5]
[326637601,1715177448632,-500.0,0.00027945,5]
[326637602,1715177448642,-500.0,0.00027945,5]
[326637603,1715177448653,-500.0,0.00027945,5]
[326637604,1715177448663,-500.0,0.00027945,5]
[326637605,1715177448673,-3199.02,0.00027945,5]
[326637606,1715177448683,-500.0,0.00027945,5]
[326637607,1715177448692,-314.03,0.00027945,5]
[326637608,1715177448702,-500.0,0.00027945,5]
[326637609,1715177448712,-500.0,0.00027945,5]
[326637610,1715177448721,-500.0,0.00027945,5]
[326637611,1715177448732,-500.0,0.00027945,5]
[326637615,1715177448741,-500.0,0.00027945,5]
[326637617,1715177448751,-549.10708007,0.00027945,5]
[326637619,1715177448761,-500.0,0.00027945,5]
[326637621,1715177448771,-500.0,0.00027945,5]
[326637625,1715177448780,-596.68,0.00027945,5]
[326637628,1715177448789,-500.0,0.00027945,5]
[326637631,1715177448799,-500.0,0.00027945,5]
[326637635,1715177448808,-2668.16,0.00027945,5]
[326637639,1715177448817,-151.0,0.00027945,7]
[326637643,1715177448827,-500.0,0.00027945,5]
[326637646,1715177448837,-500.0,0.00027945,5]
[326637649,1715177448846,-500.0,0.00027945,5]
[326637651,1715177448856,-500.0,0.00027945,5]
[326637653,1715177448867,-500.0,0.00027945,5]
[326637655,1715177448876,-500.0,0.00027945,5]
[326637657,1715177448886,-5374.87,0.00027945,5]
[326637659,1715177448895,-500.0,0.00027945,5]
[326637661,1715177448905,-295.2,0.00027945,5]
[326637663,1715177448914,-345.16,0.00027945,5]
[326637665,1715177448923,-500.0,0.00027945,5]
[326637667,1715177448933,-500.0,0.00027945,5]
[326637669,1715177448943,-500.0,0.00027945,5]
[326637671,1715177448953,-500.0,0.00027945,5]
[326637673,1715177448963,-2476.42,0.00027945,5]
[326637675,1715177448973,-561.57,0.00027945,5]
[326637677,1715177448983,-500.0,0.00027945,5]
[326637679,1715177448993,-500.0,0.00027945,5]
[326637681,1715177449002,-500.0,0.00027945,5]
[326637683,1715177449011,-515.45,0.00027945,5]
[326637685,1715177449021,-1554.29,0.00027945,5]
[326637687,1715177449031,-2420.24,0.00027945,5]
[326637689,1715177449040,-500.0,0.00027945,5]
[326637691,1715177449050,-500.0,0.00027945,5]
[326637693,1715177449060,-500.0,0.00027945,5]
[326637695,1715177449069,-1848.28,0.00027945,5]
[326637697,1715177449079,-612.87,0.00027945,5]
[326637699,1715177449089,-500.0,0.00027945,5]
[326637701,1715177449098,-500.0,0.00027945,5]
[326637703,1715177449108,-500.0,0.00027945,5]
[326637705,1715177449117,-500.0,0.00027945,5]
[326637707,1715177449126,-500.0,0.00027945,5]
[326637709,1715177449136,-347.04,0.00027945,5]
[326637711,1715177449146,-512.64,0.00027945,5]
[326637712,1715177449156,-159.7380681,0.00027945,5]
[326637713,1715177449166,-2471.69,0.00027945,5]
[326637714,1715177449175,-500.0,0.00027945,5]
[326637715,1715177449184,-575.02,0.00027945,5]
[326637716,1715177449194,-500.0,0.00027945,5]
[326637717,1715177449204,-500.0,0.00027945,5]
[326637718,1715177449214,-500.0,0.00027945,5]
[326637719,1715177449224,-500.0,0.00027945,5]
[326637720,1715177449233,-500.0,0.00027945,5]
[326637721,1715177449243,-500.0,0.00027945,5]
[326637722,1715177449253,-500.0,0.00027945,5]
[326637723,1715177449263,-500.0,0.00027945,5]
[326637724,1715177449273,-500.0,0.00027945,5]
[326637725,1715177449283,-156.93,0.00027945,5]
[326637726,1715177449293,-500.0,0.00027945,5]
[326637727,1715177449303,-500.0,0.00027945,5]
[326637728,1715177449312,-500.0,0.00027945,5]
[326637729,1715177449322,-3087.08,0.00027945,5]
[326637730,1715177449332,-500.0,0.00027945,5]
[326637731,1715177449341,-2753.21,0.00027945,5]
[326637732,1715177449351,-2202.88,0.00027945,5]
[326637733,1715177449360,-3077.38,0.00027945,5]
[326637734,1715177449370,-500.0,0.00027945,5]
[326637735,1715177449380,-890.08,0.00027945,5]
[326637736,1715177449390,-500.0,0.00027945,5]
[326637737,1715177449399,-500.0,0.00027945,5]
[326637738,1715177449409,-500.0,0.00027945,5]
[326637739,1715177449420,-500.0,0.00027945,5]
[326637740,1715177449429,-500.0,0.00027945,5]
[326637741,1715177449439,-500.0,0.00027945,5]
[326637742,1715177449449,-500.0,0.00027945,5]
[326637743,1715177449460,-500.0,0.00027945,5]
[326637744,1715177449471,-1731.99,0.00027945,5]
[326637745,1715177449481,-500.0,0.00027945,5]
[326637746,1715177449491,-500.0,0.00027945,5]
[326637747,1715177449501,-2695.58,0.00027945,5]
[326637748,1715177449510,-500.0,0.00027945,5]
[326637749,1715177449520,-3579.6166667,0.00027971,2]
[326637750,1715177449530,-17170.8099284,0.00027971,2]
[326637751,1715177449540,-5296.6234105,0.00027971,2]
[326637752,1715177449549,-2231.98446726,0.00027973,2]
[326637753,1715177449559,-3471.1033334,0.00027981,2]
[326637754,1715177449568,-3362.59,0.00027981,2]
[326637755,1715177449578,-3254.0766667,0.00027981,2]
[326637756,1715177449588,-3145.5633334,0.00027981,2]
[326637757,1715177449598,-3037.05,0.00027981,2]
[326637758,1715177449607,-16650.2899971,0.00027981,2]
[326637759,1715177449617,-16129.7700658,0.00027981,2]
[326637760,1715177449628,-15609.2501345,0.00027981,2]
[326637761,1715177449640,-15088.7302032,0.00027981,2]
[326637762,1715177449649,-14568.2102719,0.00027981,2]
[326637763,1715177449658,-5136.0603348,0.00027981,2]
[326637764,1715177449667,-4975.4972592,0.00027981,2]
[326637765,1715177449774,-4814.9341835,0.00027981,2]
[326637766,1715177449784,-4654.3711078,0.00027981,2]
[326637767,1715177449794,-4493.8080322,0.00027981,2]
[326637768,1715177449803,-328.96834259,0.0002799,3]
[326637769,1715177449813,-1585.70936532,0.00027998,2]
[326637770,1715177449822,-369.47323478,0.00027998,7]
[326637771,1715177449832,-2478.78749712,0.00027998,2]
[326637772,1715177449841,-155.24178953,0.00027998,2]
[326637773,1715177449851,-982.72910362,0.00027998,2]
[326637774,1715177449860,-178.14155541,0.00027998,2]
[326637775,1715177449870,-781.72439297,0.00027998,2]
[326637776,1715177449879,-787.58875702,0.00027998,2]
[326637777,1715177449889,-1002.59231889,0.00027998,2]
[326637778,1715177449898,-211.42088076,0.00027998,2]
[326637779,1715177449907,-208.04498106,0.00027998,2]
[326637780,1715177449917,-711.12583595,0.00027998,2]
[326637781,1715177449927,-155.0,0.00027998,2]
[326637782,1715177449936,-1338.27011967,0.00028,7]
[326637783,1715177449946,-651321.4513571,0.00028,7]
[326637784,1715177449963,-7039.08169335,0.00028,7]
[326637785,1715177449974,-289.06058461,0.00028,7]
[326637786,1715177450032,-500.0,0.00027945,5]
[326637787,1715177450041,-325.93999993,0.00028,7]
[326637788,1715177450052,-814.77215378,0.00028,7]
[326637789,1715177450071,-354.50734943,0.00028,7]
[326637790,1715177450090,-448.06921089,0.00028,7]
[326637791,1715177450101,-317.40320712,0.00028,7]
[326637792,1715177450112,-1838.98493819,0.00028,7]
[326637793,1715177450125,-63078.69528491,0.00028,7]
[326637794,1715177450137,-2185.16867197,0.00028,7]
[326637795,1715177450148,-309.3200002,0.00028,7]
[326637796,1715177450159,-4094.81083067,0.00028,7]
[326637797,1715177450171,-1169.36743907,0.00028,7]
[326637798,1715177450183,-49025.5379091,0.00028,7]
[326637799,1715177450195,-13528.39642634,0.00028,7]
[326637800,1715177450207,-277.78412499,0.00028,7]
[326637801,1715177450218,-19209.6,0.00028,7]
[326637802,1715177450407,-866.24079687,0.00012998,2]
[326637803,1715177450418,-933.0196,0.00013,2]
[326637804,1715177450427,-369.74828798,0.00017259,2]
[326637805,1715177450436,-933.0196,0.00023,2]
[326637806,1715177450446,-150.0,0.00027736,2]
[326637807,1715177450455,-314626.57728368,0.00028,7]
[326637808,1715177450467,-43873.35434567,0.00028,7]
[326637809,1715177450479,-8798.12486357,0.00028,7]
[326637810,1715177450490,-6240.5539,0.00028,7]
[326637811,1715177450502,-3978.41905694,0.00028,7]
[326637812,1715177450514,-360.7707375,0.00028,7]
[326637813,1715177450527,-356.09699987,0.00028,7]
[326637814,1715177450539,-542.40347949,0.00028,7]
[326637815,1715177450551,-9262.42589119,0.00028,7]
[326637816,1715177450563,-710.54174448,0.00028,7]
[326637817,1715177450574,-5328.8935,0.00028,7]
[326637818,1715177450587,-1149.41912532,0.00028,7]
[326637819,1715177450598,-586.95467805,0.00028,7]
[326637820,1715177450609,-1508.63125191,0.00028,7]
[326637821,1715177450620,-318.44016882,0.00028,7]
[326637822,1715177450632,-364.97489379,0.00028,7]
[326637842,1715178642001,-488.22135213,0.00012975,2]
[326637843,1715178642016,-111.77864787,0.00012975,2]
[326637844,1715178642028,-104.68373682,0.00012975,2]
[326637845,1715178642037,-220.5413736,0.00012981,2]
[326637846,1715178642049,-169.087913,0.00012982,2]
[326637847,1715178642059,-166.20572849,0.00012999,2]
[326637848,1715178642069,-500.0,0.00013698,2]
[326637849,1715178642079,-586.16293106,0.00017258,2]
[326637850,1715178642090,-155.0,0.00017259,2]
[326637851,1715178642101,-750.0,0.00018,3]
[326637852,1715178642110,-150.0,0.00018499,2]
[326637853,1715178642120,-500.0,0.000185,2]
[326637854,1715178642154,-5000.0,0.00019,2]
[326637855,1715178642165,-1000.0,0.00019062,2]
[326637856,1715178642176,-360.6,0.00019178,2]
[326637857,1715178642188,-800.0,0.0002,3]
[326637858,1715178642198,-155.0,0.0002,2]
[326637859,1715178642209,-150.16,0.00020938,2]
[326637860,1715178642219,-2209.89208006,0.00021,2]
[326637861,1715178642229,-176.84,0.0002132,2]
[326637862,1715178642239,-220.68,0.00021589,15]
[326637863,1715178642248,-250.0,0.00021918,2]
[326637864,1715178642259,-250.0,0.00021918,2]
[326637865,1715178642268,-850.0,0.00022,3]
[326637866,1715178642278,-546.4241888,0.00022,2]
[326637867,1715178642288,-778.48188241,0.00022562,2]
[326637868,1715178642300,-313.79,0.00022562,2]
[326637869,1715178644067,-627.58,0.00022562,2]
[326637874,1715178644080,-3268.73811759,0.00022562,2]
[326637878,1715178644091,-9520.28154409,0.00022562,2]
[326637882,1715178644104,-18136.60000014,0.00022562,2]
[326637885,1715178644116,-2343.10845577,0.00022562,2]
[326637888,1715178644125,-13261.21135408,0.00022562,2]
[326637891,1715178644137,-6738.77864592,0.00022562,2]
[326637894,1715178644146,-37637.96581312,0.00024,2]
[326637897,1715178644156,-1072.44064238,0.00024,2]
[326637900,1715178644165,-180.0,0.0002423,2]
[326637902,1715178644174,-9141.6134401,0.0002499,2]
[326637904,1715178644184,-2219.11364841,0.00025,2]
[326637906,1715178644193,-220.68,0.00025325,15]
[326637907,1715178644203,-12636.75901314,0.00025377,2]
[326637908,1715178644212,-360.6,0.00025379,2]
[326637909,1715178644222,-200.0,0.00025592,2]
[326637910,1715178644232,-75141.02053772,0.000267,2]
[326637911,1715178644244,-550.63971164,0.000267,2]
[326637912,1715178644256,-13324.14515606,0.000267,2]
[326637913,1715178644266,-162.15857424,0.000269,2]
[326637914,1715178644276,-1741.42627628,0.00027,2]
[326637915,1715178644286,-162.15857421,0.00027067,2]
[326637916,1715178644296,-168.67351247,0.00027077,2]
[326637917,1715178644305,-200.0,0.00027178,2]
[326637918,1715178644315,-1000.0,0.00027178,2]
[326637919,1715178644324,-7500.0,0.000272,2]
[326637920,1715178644333,-162.15857421,0.00027233,2]
[326637921,1715178644343,-168.67351244,0.00027242,2]
[326637922,1715178644354,-10000.0,0.00027297,2]
[326637923,1715178644363,-1258.53145838,0.00027297,2]
[326637924,1715178644372,-1258.53145835,0.00027383,2]
[326637925,1715178644381,-500.0,0.00027397,2]
[326637926,1715178644391,-500.0,0.00027397,2]
[326637927,1715178644400,-2300.94,0.00027397,2]
[326637928,1715178644410,-500.0,0.00027397,2]
[326637929,1715178644419,-1554.9,0.00027397,2]
[326637930,1715178644429,-1659.82,0.00027397,2]
[326637931,1715178644439,-500.0,0.00027397,2]
[326637932,1715178644448,-763.95,0.00027397,2]